fUSD/lending_fUSD_20251204
["ID","MTS","AMOUNT","RATE_DAILY","PERIOD"]
[396253119,1764881445821,-184.28285,0.00030317,31]
[396253120,1764881445830,-151.880278,0.00030317,31]
[396253121,1764881445840,-151.880278,0.00030317,31]
[396253122,1764881445851,-151.880278,0.00030317,31]
[396253124,1764881445860,-151.880278,0.00030317,31]
[396253125,1764881445870,-151.0,0.00030317,31]
[396253126,1764881445880,-281.46728,0.00030317,31]
[396253127,1764881445890,-151.0,0.00030317,31]
[396253128,1764881445899,-151.0,0.00030317,31]
[396253129,1764881445908,-151.0,0.00030317,31]
[396253130,1764881445918,-151.0,0.00030317,31]
[396253131,1764881445928,-151.0,0.00030317,31]
[396253132,1764881445937,-151.0,0.00030317,31]
[396253133,1764881445949,-151.0,0.00030317,31]
[396253134,1764881445960,-151.0,0.00030317,31]
[396253135,1764881445970,-151.0,0.00030317,31]
[396253136,1764881445981,-1211.25,0.00030378,120]
[396253137,1764881445991,-150.0,0.000304,7]
[396253138,1764881446000,-150.0,0.000304,7]
[396253139,1764881446010,-150.0,0.000304,7]
[396253140,1764881446020,-150.0,0.000304,7]
[396253141,1764881446029,-150.0,0.000304,7]
[396253142,1764881446039,-150.0,0.000304,7]
[396253143,1764881446049,-677.14877319,0.00030453,2]
[396253144,1764881446063,-49.33969697,0.00030629,7]
[396253148,1764881448021,-100.66030303,0.00030629,7]
[396253149,1764881448034,-150.0,0.00030933,7]
[396253150,1764881448044,-30.20969697,0.00030933,7]
[396253151,1764881448873,-119.79030303,0.00030933,7]
[396253152,1764881448884,-150.0,0.00030933,7]
[396253153,1764881448894,-118.81992406,0.00031,2]
[396253154,1764881448906,-2185.69647785,0.00031,2]
[396253155,1764881448919,-1120.4,0.00031,2]
[396253156,1764881448954,-3710.57865435,0.00031,2]
[396253157,1764881448966,-40485.22801486,0.00031,2]
[396253158,1764881448976,-150.0,0.00031086,7]
[396253159,1764881448987,-1194.0,0.00031147,2]
[396253160,1764881448997,-909.0,0.00031147,2]
[396253161,1764881449006,-150.0,0.000312,7]
[396253162,1764881449016,-150.0,0.000312,7]
[396253163,1764881449026,-152.698752,0.00031378,31]
[396253164,1764881449037,-181.348277,0.00031378,31]
[396253165,1764881449047,-181.348277,0.00031378,31]
[396253166,1764881449057,-181.348277,0.00031378,31]
[396253167,1764881449067,-181.348277,0.00031378,31]
[396253168,1764881449076,-151.0,0.00031387,31]
[396253169,1764881449086,-164.302565,0.00031387,31]
[396253170,1764881449095,-151.0,0.00031387,31]
[396253171,1764881449106,-151.0,0.00031387,31]
[396253172,1764881449115,-151.0,0.00031387,31]
[396253173,1764881449125,-151.0,0.00031387,31]
[396253174,1764881449135,-151.0,0.00031387,31]
[396253175,1764881449144,-184.543404,0.00031387,31]
[396253176,1764881449154,-151.0,0.00031387,31]
[396253177,1764881449164,-151.0,0.00031387,31]
[396253178,1764881449173,-151.0,0.00031387,15]
[396253179,1764881449183,-151.0,0.00031387,15]
[396253180,1764881449192,-151.0,0.00031387,15]
[396253181,1764881449203,-171.178865,0.00031387,31]
[396253182,1764881449213,-151.0,0.00031387,31]
[396253183,1764881449222,-3696.233688,0.00031387,31]
[396253184,1764881449233,-151.0,0.00031387,31]
[396253185,1764881449242,-3696.233688,0.00031387,31]
[396253186,1764881449252,-3696.233688,0.00031387,31]
[396253187,1764881449262,-3696.233688,0.00031387,31]
[396253188,1764881449275,-151.0,0.00031387,31]
[396253189,1764881449285,-151.0,0.00031387,31]
[396253190,1764881449295,-151.0,0.00031387,31]
[396253191,1764881449305,-151.0,0.00031387,31]
[396253192,1764881449314,-151.0,0.00031387,31]
[396253193,1764881449324,-151.0,0.00031387,31]
[396253194,1764881449334,-151.0,0.00031387,28]
[396253195,1764881449344,-151.0,0.00031387,31]
[396253196,1764881449356,-151.0,0.00031387,31]
[396253197,1764881449366,-274.393869,0.00031387,31]
[396253198,1764881449376,-342.26971,0.00031387,31]
[396253199,1764881449385,-151.0,0.00031387,31]
[396253200,1764881449396,-342.26971,0.00031387,31]
[396253201,1764881449406,-151.0,0.00031387,31]
[396253202,1764881449416,-342.26971,0.00031387,31]
[396253203,1764881449425,-151.0,0.00031387,31]
[396253204,1764881449434,-151.0,0.00031387,31]
[396253205,1764881449444,-342.26971,0.00031387,31]
[396253206,1764881449453,-151.0,0.00031387,31]
[396253207,1764881449463,-151.0,0.00031387,31]
[396253208,1764881449472,-151.0,0.00031387,31]
[396253209,1764881449483,-151.0,0.00031387,31]
[396253210,1764881449492,-151.0,0.00031387,31]
[396253211,1764881449502,-151.0,0.00031387,31]
[396253212,1764881449511,-151.0,0.00031387,31]
[396253213,1764881449521,-151.0,0.00031387,31]
[396253214,1764881449530,-151.0,0.00031387,31]
[396253215,1764881449539,-151.0,0.00031387,31]
[396253216,1764881449550,-151.0,0.00031387,31]
[396253217,1764881449560,-151.0,0.00031387,31]
[396253218,1764881449570,-556.553568,0.00031387,31]
[396253219,1764881449580,-151.0,0.00031387,31]
[396253220,1764881449589,-556.553568,0.00031387,31]
[396253221,1764881449599,-151.0,0.00031387,31]
[396253222,1764881449610,-288.180339,0.00031387,31]
[396253223,1764881449620,-556.553568,0.00031387,31]
[396253224,1764881449629,-556.553568,0.00031387,31]
[396253225,1764881449639,-40650.6865246,0.00031387,2]
[396253226,1764881449649,-150.0,0.00031467,7]
[396253227,1764881449658,-150.0,0.00031543,7]
[396253228,1764881449667,-272.343379,0.000319,2]
[396253229,1764881449676,-7299.57979352,0.000319,2]
[396253230,1764881449687,-6423.2609,0.000319,2]
[396253231,1764881449696,-183.99208084,0.000319,2]
[396253232,1764881449707,-996.08773306,0.000319,2]
[396253233,1764881449716,-690.0,0.0003199,3]
[396253234,1764881449726,-150.0,0.00031997,7]
[396253235,1764881449736,-151.0,0.00031997,7]
[396253236,1764881449746,-300.0,0.00031999,10]
[396253237,1764881449756,-284.86663768,0.00032,7]
[396253238,1764881449766,-250.26830593,0.00032,7]
[396253239,1764881449776,-164.89666483,0.00032,7]
[396253240,1764881449788,-217.86728005,0.00032,7]
[396253241,1764881449798,-175.14584988,0.00032,7]
[396253242,1764881449808,-171.4187926,0.00032,7]
[396253243,1764881449818,-150.0,0.00032,7]
[396253244,1764881449827,-154.02645959,0.00032,7]
[396253245,1764881449837,-292.69708667,0.00032,7]
[396253246,1764881449846,-15508.57311473,0.00032,2]
[396253249,1764882039333,-178.54270679,0.00022068,2]
[396253250,1764882039409,-89.45729312,0.00022068,2]
[396253259,1764882632945,-1626.5616646,0.00022093,2]
[396253260,1764882632957,-328.4750411,0.00022093,2]
[396253261,1764882632968,-795.9632943,0.00022093,2]
[396253262,1764882632979,-776.70773166,0.00022093,2]
[396253263,1764882632991,-223.29226834,0.00022093,2]
[396253264,1764882633001,-1000.0,0.00024855,2]
[396253265,1764882633011,-711.0,0.000269,5]
[396253266,1764882633021,-209.78377529,0.00027515,54]
[396253267,1764882633031,-1000.0,0.00027616,2]
[396253268,1764882633041,-2905.8058416,0.00027652,2]
[396253269,1764882633050,-209.78377526,0.0002798,56]
[396253270,1764882633060,-1305.0,0.00028,2]
[396253271,1764882633069,-1000.0,0.000282,2]
[396253272,1764882633078,-285.46,0.00028407,2]
[396253273,1764882633088,-209.78377526,0.00028445,57]
[396253274,1764882633098,-150.0,0.000288,4]
[396253275,1764882633107,-150.0,0.000288,4]
[396253276,1764882633116,-209.78377526,0.0002891,58]
[396253277,1764882633126,-652.0,0.00029,2]
[396253278,1764882633135,-166.66,0.00029083,30]
[396253279,1764882633145,-299.99,0.00029203,12]
[396253280,1764882633154,-151.0,0.00029203,2]
[396253281,1764882633163,-209.78377526,0.00029375,59]
[396253282,1764882633173,-150.0,0.0002944,7]
[396253283,1764882633182,-150.0,0.0002946,2]
[396253284,1764882633192,-4539.32,0.00029486,2]
[396253285,1764882633203,-300.0,0.0002949,2]
[396253286,1764882633213,-166.66,0.00029696,30]
[396253287,1764882633223,-209.78377526,0.0002984,60]
[396253288,1764882633232,-5000.0,0.0002998,2]
[396253289,1764882633242,-2983.61,0.0002998,2]
[396253290,1764882633253,-654.0,0.0003,2]
[396253291,1764882633263,-150.0,0.0003008,7]
[396253292,1764882633272,-1000.0,0.00030171,14]
[396253293,1764882633281,-209.78377526,0.00030305,61]
[396253294,1764882633291,-166.66,0.00030308,30]
[396253295,1764882633302,-1000.0,0.00030378,2]
[396253296,1764882633312,-150.0,0.0003072,7]
[396253297,1764882633322,-209.78377526,0.0003077,62]
[396253298,1764882633332,-1194.0,0.00030867,2]
[396253299,1764882633342,-166.66,0.0003092,30]
[396253300,1764882633352,-1868.35,0.00031147,2]
[396253301,1764882633361,-250.0,0.00031147,2]
[396253302,1764882633585,-151.0,0.0003117,2]
[396253303,1764882633607,-209.78377526,0.00031235,63]
[396253304,1764882633617,-150.0,0.0003136,7]
[396253305,1764882633627,-166.66,0.00031533,30]
[396253306,1764882633637,-7125.6747817,0.00031593,2]
[396253307,1764882633648,-2000.0,0.000316,2]
[396253308,1764882633661,-2843.61298431,0.000316,2]
[396253309,1764882633671,-8289.17700429,0.000317,2]
[396253310,1764882633681,-209.78377526,0.000317,64]
[396253311,1764882633690,-260.72568848,0.00031787,7]
[396253312,1764882633701,-34903.05147578,0.0003179,2]
[396253313,1764882633856,-4164.0393239,0.0003179,2]
[396253314,1764882633868,-3304.16149517,0.0003179,2]
[396253315,1764882633880,-5378.53161582,0.0003179,2]
[396253316,1764882633892,-913.83413,0.0003179,2]
[396253317,1764882633903,-407.82349986,0.0003179,2]
[396253318,1764882633939,-4644.36486807,0.0003179,2]
[396253319,1764882633952,-88988.36945085,0.0003179,2]
[396253320,1764882633964,-1539.1881818,0.0003179,2]
[396253321,1764882638153,-909.0,0.00030867,2]
[396253322,1764882638163,-299847.340868,0.0003179,2]
[396253323,1764882638176,-692.42360236,0.0003179,2]
[396253324,1764882638267,-138184.44362359,0.0003179,2]
[396253336,1764882638516,-559.07365,0.0003179,2]
[396253338,1764882638528,-1580.29999603,0.0003179,2]
[396253341,1764882638540,-1031.65750244,0.0003179,2]
[396253358,1764882640300,-342.108,0.0003179,2]
[396253359,1764882640311,-278.64036553,0.0003179,2]
[396253360,1764882640462,-716.37,0.0003179,2]
[396253362,1764882640770,-4885.42206641,0.0003179,2]
[396253363,1764882640915,-905.50480048,0.0003179,2]
[396253364,1764882640928,-2188.50509718,0.0003179,2]
[396253365,1764882640941,-16401.53480594,0.0003179,2]
[396253366,1764882640952,-604.0,0.0003179,2]
[396253367,1764882640965,-1969.9780678,0.0003179,2]
[396253368,1764882641019,-2446.73303218,0.0003179,2]
[396253373,1764882644173,-482.7097,0.0003179,2]
[396253374,1764882644184,-799.77282,0.0003179,2]
[396253375,1764882644223,-457.49703547,0.0003169,2]
[396253376,1764882644315,-6810.94395127,0.0003169,2]
[396253377,1764882644325,-8669.10310486,0.0003179,2]
[396253378,1764882644415,-563.8722431,0.0003179,2]
[396253379,1764882644426,-673.3310658,0.0003179,2]
[396253380,1764882644439,-41157.13456092,0.0003179,2]
[396253381,1764882646248,-988.19869515,0.0003179,2]
[396253382,1764882646319,-58.51865435,0.0003179,2]
[396253383,1764882646332,-1331.985,0.0003179,2]
[396253384,1764882646344,-1189.437384,0.0003179,2]
[396253385,1764882646376,-748.87113101,0.0003179,2]
[396253386,1764882646387,-1843.18451919,0.0003179,2]
[396253387,1764882646400,-1137.452036,0.0003179,2]
[396253389,1764882646472,-765.50949235,0.0003179,2]
[396253390,1764882646483,-894.05989,0.0003179,2]
[396253391,1764882646495,-1116.0,0.0003179,2]
[396253392,1764882646506,-19255.0,0.0003179,2]
[396253393,1764882646517,-454.625,0.0003179,2]
[396253394,1764882646528,-605.0,0.0003179,2]
[396253395,1764882646540,-60388.83518408,0.0003179,2]
[396253396,1764882646550,-1380.8725,0.0003179,2]
[396253397,1764882646559,-386.94215616,0.000318,2]
[396253398,1764882646569,-251.18735505,0.000318,2]
[396253399,1764882646579,-285.46,0.00031832,2]
[396253400,1764882646588,-184.77595136,0.0003188,2]
[396253401,1764882646607,-150.85,0.0003188,2]
[396253402,1764882646619,-500.0,0.00031881,2]
[396253403,1764882646628,-200.0,0.00031881,2]
[396253404,1764882646638,-500.0,0.00031881,2]
[396253405,1764882646649,-500.0,0.00031881,2]
[396253406,1764882646662,-500.0,0.00031881,2]
[396253407,1764882646673,-467.37136402,0.00031881,2]
[396253408,1764882646683,-200.0,0.00031881,2]
[396253409,1764882646693,-500.0,0.00031881,2]
[396253410,1764882646703,-500.0,0.00031881,2]
[396253411,1764882646713,-500.0,0.00031881,2]
[396253412,1764882646722,-500.0,0.00031881,2]
[396253413,1764882646732,-500.0,0.00031881,2]
[396253414,1764882646743,-500.0,0.00031881,2]
[396253415,1764882646754,-270.86578806,0.00031881,2]
[396253416,1764882646764,-500.0,0.00031881,2]
[396253417,1764882646774,-500.0,0.00031881,2]
[396253418,1764882646784,-151.0,0.00031881,2]
[396253419,1764882646793,-500.0,0.00031881,2]
[396253420,1764882646803,-500.0,0.00031881,2]
[396253421,1764882646813,-151.0,0.00031881,2]
[396253422,1764882646823,-171.56982309,0.00031881,2]
[396253452,1764882678109,-327.27461369,0.0001581,2]
[396253460,1764882767612,-172.72538631,0.0001581,2]
[396253461,1764882767635,-113.02461369,0.0001581,2]
[396253467,1764882918208,-157.66,0.00014732,2]
[396253468,1764882918231,-128.09,0.00015507,2]
[396253478,1764883293455,-29.57,0.00015507,2]
[396253479,1764883293479,-256.18,0.0001581,2]
[396253480,1764883599275,-5.08538631,0.0001581,2]
[396253481,1764883599298,-280.66461369,0.00015873,2]
[396253536,1764883808928,-236.09323517,0.00013699,2]
[396253544,1764883832469,-59.64676483,0.00013699,2]
[396253545,1764883832479,-500.0,0.00015873,2]
[396253547,1764883832488,-439.35323517,0.000162,5]
[396253555,1764883832599,-3696.58481216,0.000162,5]
[396253556,1764883832609,-157.66,0.00016283,2]
[396253557,1764883832619,-428.53646628,0.00016421,2]
[396253558,1764883832628,-151.0,0.00016962,2]
[396253559,1764883832639,-521.75979238,0.00016973,2]
[396253560,1764883832648,-500.0,0.00016973,2]
[396253561,1764883832659,-500.0,0.00016973,2]
[396253562,1764883832669,-157.66,0.00017058,2]
[396253563,1764883832679,-503.45042948,0.00017521,2]
[396253564,1764883832689,-1000.0,0.00017521,2]
[396253565,1764883832699,-157.66,0.00017834,2]
[396253566,1764883832709,-503.00293736,0.00018068,2]
[396253567,1764883832719,-157.66,0.00018609,2]
[396253568,1764883832728,-157.66,0.00019384,2]
[396253569,1764883832738,-480.06109419,0.00019522,2]
[396253570,1764883832748,-157.66,0.0002016,2]
[396253571,1764883832759,-295.74,0.00020187,2]
[396253572,1764883832769,-157.66,0.00020935,2]
[396253573,1764883832779,-157.66,0.0002171,2]
[396253574,1764883832790,-157.66,0.00022486,2]
[396253575,1764883832799,-157.66,0.00023261,2]
[396253576,1764883832809,-157.66,0.00024037,2]
[396253577,1764883832819,-157.66,0.00024812,2]
[396253578,1764883832830,-967.38179828,0.00025,21]
[396253579,1764883832841,-1586.15,0.00025,2]
[396253580,1764883832852,-300.0,0.0002508,2]
[396253581,1764883832861,-151.0,0.00025081,2]
[396253582,1764883832871,-151.0,0.00025081,2]
[396253583,1764883832882,-151.0,0.00025081,2]
[396253584,1764883832892,-151.0,0.00025081,2]
[396253585,1764883832899,-183.07325149,0.00025081,2]
[396253586,1764883832905,-500.0,0.00025081,2]
[396253587,1764883832914,-500.0,0.00025081,2]
[396253588,1764883832923,-168.65881289,0.00025081,2]
[396253589,1764883832932,-151.0,0.00025081,2]
[396253590,1764883832941,-151.0,0.00025081,2]
[396253591,1764883832950,-151.0,0.00025081,2]
[396253592,1764883832959,-151.0,0.00025081,2]
[396253593,1764883832969,-151.0,0.00025081,2]
[396253594,1764883832978,-200.0,0.00025081,2]
[396253595,1764883832988,-151.0,0.00025081,2]
[396253596,1764883832997,-198.0,0.00025081,2]
[396253597,1764883833007,-151.0,0.00025081,2]
[396253598,1764883833016,-151.0,0.00025081,2]
[396253599,1764883833025,-151.0,0.00025081,2]
[396253600,1764883833035,-151.0,0.00025081,2]
[396253601,1764883833045,-151.0,0.00025081,2]
[396253602,1764883833054,-4566.66,0.00025096,2]
[396253603,1764883833063,-157.66,0.00025587,2]
[396253604,1764883833075,-153.62,0.00026308,2]
[396253605,1764883833085,-157.66,0.00026363,2]
[396253606,1764883833094,-631.6,0.0002645,2]
[396253607,1764883833104,-200.0,0.00026614,2]
[396253608,1764883833114,-295.74,0.00026676,2]
[396253609,1764883833123,-5310.0,0.0002684,2]
[396253610,1764883833132,-157.66,0.00027138,2]
[396253611,1764883833142,-500.0,0.00027397,14]
[396253612,1764883833153,-150.0,0.00027397,5]
[396253613,1764883833163,-157.66,0.00027913,2]
[396253614,1764883833172,-250.0,0.00027945,5]
[396253615,1764883833180,-350.0,0.00028493,5]
[396253616,1764883833190,-157.66,0.00028689,2]
[396253617,1764883833199,-150.00000001,0.000288,4]
[396253618,1764883833355,-150.0,0.000288,4]
[396253619,1764883833406,-150.0,0.000288,4]
[396253620,1764883833416,-242.20759846,0.000288,4]
[396253621,1764883833426,-150.0,0.000288,4]
[396253622,1764883833435,-150.0,0.000288,4]
[396253623,1764883833445,-150.0,0.000288,4]
[396253624,1764883833455,-450.0,0.00029041,5]
[396253625,1764883833465,-157.66,0.00029464,2]
[396253626,1764883833475,-200.0,0.00029464,2]
[396253627,1764883833484,-543.07019827,0.00029589,5]
[396253628,1764883833493,-150.0,0.0003,14]
[396253629,1764883833502,-150.0,0.0003,2]
[396253630,1764883833512,-150.0,0.0003,2]
[396253631,1764883833522,-150.0,0.0003,14]
[396253632,1764883833532,-150.0,0.0003,2]
[396253633,1764883833541,-150.0,0.0003,14]
[396253634,1764883833551,-500.0,0.0003,14]
[396253635,1764883833561,-433.19845886,0.0003,14]
[396253636,1764883833570,-2000.0,0.000301,2]
[396253637,1764883833580,-1000.0,0.0003013,2]
[396253638,1764883833590,-150.0,0.00030137,2]
[396253639,1764883833600,-150.0,0.00030137,14]
[396253640,1764883833609,-500.0,0.00030137,14]
[396253641,1764883833619,-200.0,0.00030274,2]
[396253642,1764883833628,-200.0,0.00030274,14]
[396253643,1764883833638,-500.0,0.00030274,14]
[396253644,1764883833648,-150.0,0.000304,7]
[396253645,1764883833658,-470.0,0.00030411,14]
[396253646,1764883833667,-153.62,0.00030692,2]
[396253647,1764883833677,-1435.71,0.0003099,2]
[396253648,1764883833687,-499.999999,0.0003121,2]
[396253649,1764883833697,-162.52615634,0.00031589,18]
[396253650,1764883833707,-6541.59688803,0.00031589,2]
[396253651,1764883833718,-247.14386461,0.00031677,7]
[396253652,1764883833728,-33676.68062071,0.0003168,2]
[396253653,1764883833790,-369.39188292,0.0003168,2]
[396253654,1764883833803,-17310.4368659,0.0003168,2]
[396253655,1764883833874,-397.84647269,0.0003168,2]
[396253656,1764883833886,-4299.99999984,0.0003168,2]
[396253657,1764883833901,-23082.52635869,0.0003168,2]
[396253658,1764883833914,-907.39497235,0.0003168,2]
[396253659,1764883833972,-2180.125849,0.0003168,2]
[396253677,1764883841983,-373.13893963,0.00030018,2]
[396253678,1764883842026,-513.46651266,0.00030018,2]
[396253679,1764883842040,-22.39454771,0.00030018,2]
[396253680,1764883842051,-13840.10001512,0.0003168,2]
[396253682,1764883843309,-2482.62524177,0.0003168,2]
[396253683,1764883843333,-286.99006739,0.0003168,2]
[396253684,1764883843362,-273.33661328,0.0003168,2]
[396253685,1764883843408,-2722.58352872,0.0003168,2]
[396253697,1764883844667,-15553.33589225,0.0003168,2]
[396253698,1764883844958,-151.23940009,0.0003168,2]
[396253699,1764883845136,-940.372799,0.0003168,2]
[396253701,1764883847484,-420.0,0.0003168,2]
[396253702,1764883847557,-3924.21058312,0.0003168,2]
[396253703,1764883847572,-4161.59892156,0.0003168,2]
[396253704,1764883847641,-9451.49592,0.0003168,2]
[396253705,1764883847733,-655.0,0.0003168,2]
[396253706,1764883847745,-419.97,0.0003168,2]
[396253707,1764883847758,-622492.7379956,0.0003168,2]
[396253708,1764883847768,-7460.25930387,0.00031689,2]
[396253709,1764883847778,-164.10134646,0.00031693,2]
[396253710,1764883847787,-331.66470528,0.00031748,2]
[396253711,1764883847796,-500.0,0.0003178,3]
[396253712,1764883847806,-70645.38068269,0.0003178,3]
[396253736,1764884724324,-335.42618551,0.00016973,2]
[396253825,1764885032556,-164.57381449,0.00016973,2]
[396253837,1764885032765,-159.04,0.00020469,2]
[396253838,1764885032783,-159.04,0.00023028,2]
[396253839,1764885032793,-159.04,0.00025587,2]
[396253840,1764885032803,-242.25,0.00025587,120]
[396253841,1764885032813,-86.64405657,0.00028145,2]
[396253842,1764885032827,-72.39594343,0.00028145,2]
[396253843,1764885032838,-843.91756655,0.000282,2]
[396253844,1764885032851,-1156.08243345,0.000282,2]
[396253845,1764885032862,-166.66,0.00028507,30]
[396253846,1764885032872,-242.25,0.00028785,120]
[396253847,1764885032883,-150.0,0.000288,4]
[396253848,1764885032892,-150.0,0.000288,4]
[396253849,1764885032898,-150.0,0.000288,4]
[396253850,1764885032905,-166.66,0.00029107,30]
[396253851,1764885032911,-1000.0,0.0002949,120]
[396253852,1764885032919,-583.814,0.0002949,120]
[396253853,1764885032927,-693.46276017,0.0002955,2]
[396253854,1764885032969,-506.53723983,0.0002955,2]
[396253855,1764885032976,-412.782624,0.00029551,2]
[396253856,1764885032984,-665.78512384,0.000297,2]
[396253857,1764885033054,-334.21487616,0.000297,2]
[396253858,1764885033063,-166.66,0.00029708,30]
[396253859,1764885033073,-39.08485122,0.00030072,2]
[396253869,1764885038654,-210.91514878,0.00030072,2]
[396253870,1764885038664,-334.0,0.000303,2]
[396253871,1764885038674,-400.0,0.000303,2]
[396253872,1764885038683,-50.11067454,0.00030302,2]
[396253873,1764885038695,-260.98932546,0.00030302,2]
[396253874,1764885038704,-599.60298507,0.00030302,2]
[396253875,1764885038714,-166.66,0.00030308,30]
[396253876,1764885038723,-150.0,0.000304,7]
[396253877,1764885038733,-242.96,0.0003061,2]
[396253878,1764885038742,-159.04,0.00030704,2]
[396253879,1764885038752,-1257.63,0.00030722,30]
[396253880,1764885038762,-298.66793947,0.00030727,2]
[396253881,1764885038818,-701.33206053,0.00030727,2]
[396253882,1764885038828,-374.65468023,0.00030901,2]
[396253883,1764885038841,-625.34531977,0.00030901,2]
[396253884,1764885038851,-166.66,0.00030908,30]
[396253885,1764885038861,-168.0,0.0003137,2]
[396253886,1764885038870,-1869.82885826,0.0003147,2]
[396253887,1764885038982,-3636.82058928,0.0003147,2]
[396253888,1764885039114,-820.32875408,0.0003147,2]
[396253893,1764885041434,-7765.01788975,0.0003147,2]
[396253894,1764885041448,-81612.762,0.0003147,2]
[396253895,1764885041556,-10932.93501029,0.0003147,2]
[396253896,1764885041568,-1297.56,0.0003147,2]
[396253897,1764885041580,-70994.05148478,0.0003147,2]
[396253898,1764885041590,-5887.4371992,0.00031473,2]
[396253899,1764885041600,-166.66,0.00031508,30]
[396253900,1764885041610,-1900.0,0.00031561,2]
[396253901,1764885041619,-850.0,0.00031561,2]
[396253902,1764885041629,-300.0,0.00031561,2]
[396253903,1764885041638,-277.35679052,0.00031561,2]
[396253904,1764885041648,-162.52615634,0.0003157,18]
[396253905,1764885041658,-5627.96836919,0.0003157,2]
[396253906,1764885041931,-3222.48769626,0.0003157,2]
[396253907,1764885042227,-1.7e-07,0.0003157,2]
[396253908,1764885042240,-11442.89648548,0.0003157,2]
[396253925,1764885044486,-4046.9850555,0.0003157,2]
[396253926,1764885044500,-2020.2,0.0003157,2]
[396253927,1764885044731,-785.0,0.0003157,2]
[396253928,1764885044743,-1510.13526797,0.0003157,2]
[396253929,1764885044755,-3755.54023686,0.0003157,2]
[396253930,1764885044767,-1335.22,0.0003157,2]
[396253931,1764885044858,-23179.55959758,0.0003157,2]
[396253932,1764885044913,-2081.8364,0.0003157,2]
[396253933,1764885044924,-1417.05,0.0003157,2]
[396253934,1764885044935,-4386.95,0.0003157,2]
[396253942,1764885047638,-4705.72454525,0.0003157,2]
[396253943,1764885047885,-384.04502143,0.0003157,2]
[396253944,1764885047896,-12040.04440058,0.0003157,2]
[396253945,1764885047908,-117311.78730915,0.0003157,2]
[396253946,1764885048016,-1692.29011134,0.0003157,2]
[396253947,1764885048092,-635.63108795,0.0003157,2]
[396253967,1764886231789,-155.87,0.00012793,2]
[396253968,1764886231799,-250.0,0.00014073,2]
[396253969,1764886231808,-20.53313074,0.00014073,2]
[396253971,1764886231850,-174.46686926,0.00014073,2]
[396253973,1764886231861,-155.87,0.00014073,2]
[396253974,1764886231871,-195.0,0.00014584,2]
[396253975,1764886231880,-35.69707259,0.00015352,2]
[396253976,1764886231893,-120.17292741,0.00015352,2]
[396253977,1764886231903,-155.87,0.00016631,2]
[396253978,1764886231912,-129.10360051,0.00017101,2]
[396253981,1764886231985,-120.89639949,0.00017101,2]
[396253982,1764886231995,-155.87,0.00017911,2]
[396253983,1764886232005,-155.87,0.0001919,2]
[396253984,1764886232015,-155.87,0.00020469,2]
[396253985,1764886232026,-155.87,0.00021749,2]
[396253986,1764886232037,-155.87,0.00023028,2]
[396253987,1764886232046,-155.87,0.00024307,2]
[396253988,1764886232056,-204.97,0.00025587,2]
[396253989,1764886232065,-200.0,0.00025587,2]
[396253990,1764886232075,-155.87,0.00025587,2]
[396253991,1764886232084,-911.4437936,0.000277,2]
[396253992,1764886232095,-827.05961289,0.000277,2]
[396253993,1764886232176,-261.49659351,0.000277,2]
[396253994,1764886232186,-298.0,0.00027999,2]
[396253995,1764886232197,-1200.0,0.00028,2]
[396253996,1764886232207,-4699.98,0.00028001,2]
[396253997,1764886232218,-200.0,0.00028011,2]
[396253998,1764886232227,-191.38741443,0.000288,4]